Cogmind - Beta 10.2 @@@ ROGUE MODE // 2021.03.15 @ 16:10:34 Player: ChromeKnight Result: Self-destructed Performance ------------- Evolutions (0) 0 Regions Visited (4) 800 Robots Destroyed (12) 60 Value Destroyed (117) 117 Prototype IDs (0) 0 Alien Tech Used (0) 0 Bonus (0) 0 TOTAL SCORE: 977 Bonus ------- None Cogmind --------- Core Integrity 172/250 Matter 224/300 Energy 125/125 System Corruption 5% Temperature Cool (0) Movement Core (450) Ox8 Location -9/Mines Parts ------- > --- POWER (1) -------- Light Ion Engine > --- PROPULSION (2) --- (None) > --- UTILITY (2) ------ Large Storage Unit > --- WEAPON (2) ------- Heavy Assault Rifle Heavy Assault Rifle > --- INVENTORY (10) --- Large Storage Unit Makeshift Sword Peak State ------------ > --- POWER ------------ Light Ion Engine > --- PROPULSION ------- Aluminum Leg Aluminum Leg > --- UTILITY ---------- Small Storage Unit Medium Storage Unit > --- WEAPON ----------- Heavy Assault Rifle Heavy Assault Rifle > --- INVENTORY -------- Heavy Assault Rifle Heavy Assault Rifle [Rating: 9] Favorites ----------- Power Light Ion Engine Engine Light Ion Engine Propulsion Aluminum Leg Leg Aluminum Leg Utility Large Storage Unit Storage Large Storage Unit Weapon Heavy Assault Rifle Energy Gun Small Laser Ballistic Gun Heavy Assault Rifle Build | -11 -10 -10 -10 -9 ------- Run | Scr Mat Min Exi Min Slots Evolved . | . . . . . Power . | . . . . . Propulsion . | . . . . . Utility . | . . . . . Weapon . | . . . . . Parts Attached 16 | 6 4 4 2 . Power 5 | 1 . 4 . . Engine 5 | 1 . 4 . . Core . | . . . . . Reactor . | . . . . . Propulsion 2 | 2 . . . . Treads . | . . . . . Leg 2 | 2 . . . . Wheel . | . . . . . Hover . | . . . . . Flight . | . . . . . Utility 3 | 1 2 . . . Device . | . . . . . Storage 3 | 1 2 . . . Processor . | . . . . . Hackware . | . . . . . Protection . | . . . . . Artifact . | . . . . . Weapon 6 | 2 2 . 2 . Energy Gun 1 | 1 . . . . Energy Cannon . | . . . . . Ballistic Gun 5 | 1 2 . 2 . Ballistic Cannon . | . . . . . Launcher . | . . . . . Special Weapon . | . . . . . Impact Weapon . | . . . . . Slashing Weapon . | . . . . . Piercing Weapon . | . . . . . Special Melee Weapon . | . . . . . Unidentified Prototypes . | . . . . . Parts Lost 2 | . . 1 . 1 Power . | . . . . . Propulsion 2 | . . 1 . 1 Utility . | . . . . . Weapon . | . . . . . Highest Loss Streak 1 | . . 1 . 1 Average Slot Usage (%) 75 | . 85 80 71 71 Engine 14 | . 14 14 14 14 Leg 18 | . 28 23 14 14 Storage 14 | . 14 14 14 14 Ballistic Gun 27 | . 27 28 28 28 Naked Turns . | . . . . . Heaviest Build 25 | 10 25 25 25 25 Greatest Support 20 | 20 20 20 10 10 Greatest Overweight (x) 2 | 2 1 2 2 2 Average Overweight (x) 1 | . . 1 2 2 Largest Inventory Capacity 14 | 6 14 10 10 10 Average Capacity 9 | 5 6 10 10 10 Most Carried 8 | 1 3 8 7 2 Average Carried 3 | . 2 5 2 2 Final Capacity 10 | 6 10 10 10 10 Final Carried 8 | 1 3 8 2 2 Class Distribution -------------------- 100% | Mutant Dominant Class ---------------- Mutant | -10/Materials Mutant | -10/Mines Mutant | -10/Exiles Mutant | -9/Mines Resources | -11 -10 -10 -10 -9 ----------- Run | Scr Mat Min Exi Min Matter Collected 418 | 247 33 138 . . Remotely . | . . . . . Salvage Created 198 | . 53 145 . . Parts 20 | . 3 17 . . Haulers Intercepted . | . . . . . Recyclers Shooed . | . . . . . Parts Field Recycled . | . . . . . Retrieved Matter . | . . . . . Parts Self-Destructed . | . . . . . Prevented . | . . . . . Kills | -11 -10 -10 -10 -9 ------- Run | Scr Mat Min Exi Min Combat Hostiles Destroyed 11 | . 3 8 . . Guns 11 | . 3 8 . . Classes Destroyed 2 | . 1 1 . . Tunneler 1 | . . 1 . . Swarmer 11 | . 3 8 . . Best Kill Streak 3 | . 2 3 . . Combat Bots Only 3 | . 2 3 . . Max Kills in Single Turn 2 | . 1 2 . . Gunslinging . | . . . . . Exploded . | . . . . . Melee . | . . . . . Uniques/NPCs Destroyed . | . . . . . Combat | -11 -10 -10 -10 -9 -------- Run | Scr Mat Min Exi Min Damage Taken 643 | . 25 461 . 157 Core 78 | . 9 69 . . Absorbed by Shields . | . . . . . Core Remaining (%) 100 | 100 . . . . Volleys Fired 24 | . 4 20 . . Largest 2 | . 2 2 . . Hottest 46 | . 46 46 . . Shots Fired 48 | . 8 40 . . Gun 48 | . 8 40 . . Cannon . | . . . . . Launcher . | . . . . . Special . | . . . . . Kinetic 48 | . 8 40 . . Thermal . | . . . . . Explosive . | . . . . . Electromagnetic . | . . . . . Robot Hit Streak 5 | . 3 5 . . Robot Miss Streak 4 | . 1 4 . . Penetration Max . | . . . . . Secondary Targets 1 | . . 1 . . Max Gunslinging Chain 1 | . . 1 . . Shots Hit Robots 25 | . 5 20 . . Core Hits 12 | . 3 9 . . Critical Hits . | . . . . . Critical Kills . | . . . . . Critical Parts Destroyed . | . . . . . Melee Attacks . | . . . . . Impact . | . . . . . Slashing . | . . . . . Piercing . | . . . . . Sneak Attacks . | . . . . . Combat Hostiles . | . . . . . Follow-up Attacks . | . . . . . Damage Inflicted 393 | . 74 319 . . Guns 393 | . 74 319 . . Cannons . | . . . . . Explosions . | . . . . . Melee . | . . . . . Ramming . | . . . . . Kinetic 393 | . 74 319 . . Thermal . | . . . . . Explosive . | . . . . . Electromagnetic . | . . . . . Impact . | . . . . . Slashing . | . . . . . Piercing . | . . . . . Highest Corruption 5 | . . . . 5 Average Corruption 5 | . . . . 5 Corruption Purged . | . . . . . Overload Shots . | . . . . . Overflow Damage . | . . . . . Projectiles . | . . . . . Explosions . | . . . . . Melee . | . . . . . Knockbacks . | . . . . . Impact . | . . . . . Kinetic . | . . . . . Secondary . | . . . . . Self-Inflicted Damage . | . . . . . Shots . | . . . . . Rammed . | . . . . . Targets Rammed . | . . . . . Kicked . | . . . . . Crushed . | . . . . . Highest Temperature . | . . . . . Average Temperature . | . . . . . Received Heat Transfer . | . . . . . Siege Activations . | . . . . . Robots Corrupted . | . . . . . Combat Hostiles . | . . . . . Parts Fried . | . . . . . Impact Corruptions . | . . . . . Robots Melted . | . . . . . Combat Hostiles . | . . . . . Parts Melted . | . . . . . Heat Transferred . | . . . . . Parts Sabotaged . | . . . . . Parts Stolen . | . . . . . Parts Stripped . | . . . . . Power Chain Reactions . | . . . . . Missiles Intercepted . | . . . . . Alert | -11 -10 -10 -10 -9 ------- Run | Scr Mat Min Exi Min Peak Influence 218 | . 85 218 . . Initial 33 | . . 33 . . Average 85 | . 40 128 . . Maximum Alert Level 1 | . . 1 . . Low Security (%) 82 | 100 100 71 . 100 Level 1 17 | . . 28 . . Level 2 . | . . . . . Level 3 . | . . . . . Level 4 . | . . . . . Level 5 . | . . . . . High Security . | . . . . . Max Security . | . . . . . Squads Dispatched 1 | . 1 . . . Investigation . | . . . . . Extermination . | . . . . . Reinforcement 1 | . 1 . . . Assault . | . . . . . Garrison . | . . . . . Intercept . | . . . . . Construction Impeded . | . . . . . Haulers Reinforced . | . . . . . Stealth | -11 -10 -10 -10 -9 --------- Run | Scr Mat Min Exi Min Distress Signals 1 | . 1 . . . Communications Jammed . | . . . . . Distress Signals . | . . . . . Times Spotted 31 | . 5 9 . 17 Peak Tracking Total 16 | . 4 3 . 16 Tactical Retreats 1 | . 1 . . . Traps | -11 -10 -10 -10 -9 ------- Run | Scr Mat Min Exi Min Traps Triggered . | . . . . . Indirectly . | . . . . . Trap Hack Attempts . | . . . . . Triggered . | . . . . . Disarmed . | . . . . . Reprogrammed . | . . . . . Reused . | . . . . . Traps Extracted . | . . . . . Installed . | . . . . . Triggered . | . . . . . Machines | -11 -10 -10 -10 -9 ---------- Run | Scr Mat Min Exi Min Machines Disabled . | . . . . . Max in Single Turn . | . . . . . Machines Sabotaged . | . . . . . Garrisons Compromised . | . . . . . Overloaded Fab Kills . | . . . . . Fab Network Shutdowns . | . . . . . Hacking | -11 -10 -10 -10 -9 --------- Run | Scr Mat Min Exi Min Machines Accessed 2 | . 1 . 1 . Terminals 1 | . 1 . . . Fabricators . | . . . . . Repair Stations . | . . . . . Recycling Units . | . . . . . Scanalyzers . | . . . . . Garrison Access . | . . . . . Total Hacks 3 | . 2 . 1 . Successful 2 | . 1 . 1 . Failed 1 | . 1 . . . Catastrophic . | . . . . . Database Lockouts . | . . . . . Manual . | . . . . . Terminals 2 | . 2 . . . Fabricators . | . . . . . Repair Stations . | . . . . . Recycling Units . | . . . . . Scanalyzers . | . . . . . Garrison Access . | . . . . . Terminal Hacks 2 | . 1 . 1 . Record 2 | . 1 . 1 . Fabricator Hacks . | . . . . . Repair Station Hacks . | . . . . . Recycling Unit Hacks . | . . . . . Scanalyzer . | . . . . . Garrison Access Hacks . | . . . . . Unauthorized Hacks . | . . . . . Terminals . | . . . . . Fabricators . | . . . . . Repair Stations . | . . . . . Recycling Units . | . . . . . Scanalyzers . | . . . . . Garrison Access . | . . . . . Data Cores Recovered . | . . . . . Used . | . . . . . Hacking Detections 1 | . 1 . . . Full Trace Events . | . . . . . Feedback Events . | . . . . . Feedback Blocked . | . . . . . Robot Schematics Acquired . | . . . . . Robots Built . | . . . . . Matter . | . . . . . Time . | . . . . . Total Robot Build Rating . | . . . . . Part Schematics Acquired . | . . . . . Parts Built . | . . . . . Matter . | . . . . . Time . | . . . . . Total Part Build Rating . | . . . . . Parts Repaired . | . . . . . Time . | . . . . . Parts Recycled . | . . . . . Recycled Matter . | . . . . . Retrieved Matter . | . . . . . Retrieved Components . | . . . . . Parts Scanalyzed . | . . . . . Part Schematics Acquired . | . . . . . Parts Damaged . | . . . . . Bothacking | -11 -10 -10 -10 -9 ------------ Run | Scr Mat Min Exi Min Used RIF Installer . | . . . . . Robots Hacked . | . . . . . Non-combat . | . . . . . Combat . | . . . . . Robot Hacks Applied . | . . . . . Relay Couplers Released . | . . . . . Robots Rewired . | . . . . . Allies Hacked . | . . . . . Hacks Repelled . | . . . . . Allies | -11 -10 -10 -10 -9 -------- Run | Scr Mat Min Exi Min Total Allies 2 | . . . . 2 Largest Group 2 | . . . . 2 Highest-Rated Group 41 | . . . . 41 Highest-Rated Ally 31 | . . . . 31 Total Orders . | . . . . . Ally Attacks 3 | . . . . 3 Total Damage 21 | . . . . 21 Kills . | . . . . . Allies Corrupted . | . . . . . Allies Melted . | . . . . . Intel | -11 -10 -10 -10 -9 ------- Run | Scr Mat Min Exi Min Robot Analysis Total . | . . . . . Derelict Logs Recovered 1 | . . 1 . . Drone Launches . | . . . . . Drone Recoveries . | . . . . . Exploration | -11 -10 -10 -10 -9 ------------- Run | Scr Mat Min Exi Min Turns Passed 1395 | 61 161 409 708 56 Spaces Moved 784 | 49 106 208 390 31 Core 17 | 17 . . . . Treads . | . . . . . Legs 767 | 32 106 208 390 31 Wheels . | . . . . . Hover . | . . . . . Flight . | . . . . . Fastest Speed 50 | 50 120 150 180 180 Average Speed 162 | 105 125 159 180 180 Slowest Speed 180 | 150 150 180 180 180 Overloaded Moves . | . . . . . Propulsion Burnouts . | . . . . . Robots Hopped . | . . . . . Cave-ins Triggered . | . . . . . Exploration Rate (%) 35 | 3 21 43 88 22 Regions Visited 4 Branch Regions 3 Pre-discovered Areas . | . . . . . Known Exits Taken . | . . . . . Unknown Exits Taken 4 | 1 1 1 1 . Scrap Searched 1 | . . 1 . . Spaces Dug . | . . . . . Terrain Destroyed . | . . . . . Melee . | . . . . . Projectile . | . . . . . AOE . | . . . . . Terrain Rammed . | . . . . . Walls Destroyed . | . . . . . Machines Disabled . | . . . . . Actions | -11 -10 -10 -10 -9 --------- Run | Scr Mat Min Exi Min Total 854 | 55 127 243 398 31 Wait 16 | . 4 11 1 . Move 780 | 48 105 207 389 31 Hop . | . . . . . Pick Up 6 | 1 4 1 . . Fast Attach 9 | 6 3 . . . Attach . | . . . . . Detach . | . . . . . Swap 7 | . 1 4 2 . Drop 12 | . 6 . 6 . Fire 24 | . 4 20 . . Melee . | . . . . . Ram . | . . . . . Kick . | . . . . . Crush . | . . . . . Escape Stasis . | . . . . . Rewire . | . . . . . Trap . | . . . . . Miscellaneous . | . . . . . Route ------- -11/Scrapyard -10/Materials -10/Mines (discovered 2 exits: [*Mat] / *Exi) -10/Exiles (discovered 2 exits: [*Min x2]) -9/Mines History --------- Turn | Location | Event 29 | -11/Scrapyard | Discovered new exit (range 15) 62 | -11/Scrapyard | Entered Materials 173 | -10/Materials | Discovered new exit (range 16) 223 | -10/Materials | Entered Mines 235 | -10/Mines | Discovered new exit (range 7) 299 | -10/Mines | A weapon hastily lodged in a ceiling crevice suddenly fell to the ground 312 | -10/Mines | Build established: Mutant 468 | -10/Mines | Learned 4 Materials zone layouts 620 | -10/Mines | Deemed a non-threat by the Exiles lab entrance 622 | -10/Mines | Discovered new exit (range 5) 632 | -10/Mines | Entered Exiles 632 | -10/Exiles | Found Exiles lab abandoned 662 | -10/Exiles | Discovered new exit (range 15) 1320 | -10/Exiles | Discovered new exit (range 10) 1340 | -10/Exiles | Entered Mines 1370 | -9/Mines | Assembled infested the area 1375 | -9/Mines | Assisted by a Guerilla fighting off Assembled 1396 | -9/Mines | Self-destructed Last Messages --------------- 01370_ ALERT: Infestation in the mines, dispatching Demolisher response squad. 01375_ A derelict emerges from the shadows: "You need to get out of here! I've been tracking a group of Assembled to figure out where they're coming from, and they're closing on this area, come on!" 01377_ KB-PHQ(h): "I'll hold them off! Go on ahead or try to find another way!" 01382_ KB-PHQ(h) knocked back. 01382_ HV Slug penetrates as-48790. 01382_ as-48790 suffers critical hit. 01382_ as-48790 knocked back. 01385_ A pair of derelicts emerge from the shadows: "We're, um, lost. You wouldn't happen to know the way out of here, would you?" 01386_ KB-PHQ(h) destroyed. 01390_ Knocked back. 01390_ YR-PP9(z) destroyed. 01392_ YN-24R(g) destroyed. 01394_ U-05 Engineer lays Concrete. 01395_ Aluminum Leg destroyed. 01395_ System corrupted by crushing effect (+5). 01395_ Knocked back. 01396_ U-05 Engineer lays Concrete. Map ----- +----------------------------------------------------+ | ?????????????????????????????????????????????????? | | ?????????????????????????????????????????????????? | | ?????????????????????????????????????????????????? | | ?????????????????????????????????????????????????? | | ?????????????????????????????????????????????????? | | ?????????????????????????????????????????????????? | | ?????????????????????????????????????????????????? | | ?????????????????????????????????????????????????? | | ?????????????????????????????????????????????????? | | ?????????????????????????????????????????????????? | | ?????????????????????????????????????????????????? | | ????????????????????#????????????????????????????? | | ??????????????????? #???????? #?????????????????? | | ??????????????????? #???????? #?????????????????? | | ?????????????????? #??????## #?????????????????? | | ?????????????????? #?????? ##????????????????? | | ?????????????????? #?????? #????????????????? | | ?????????????????? ##????? ?????????????????? | | ?????????????????? ##???? #?????????????????? | | ?????????????##### #??## ###???????????????? | | ????????????## #??# ###?????????????? | | ????????????# #### ##????????????? | | ????????????# ## #????????????? | | ????????????# ## ##???????????? | | ????????????# ### % ##??????????? | | ????????????# #######@ ####???????? | | ????????????## ##???## a d ??????? | | ?????????????### #?#### aa u d ??????? | | ???????????????# ### a # "??????? | | ?????? ???????# a a #??? ????????? | | ?????? ###???# a #######???????????????? | | ??????# ??#### a ###?????????????????????? | | ???????# ????# a ##???????????????????????? | | ???????# ??## a ##????????????????????????? | | ????????# ###! aa##?????????????????????????? | | ????????# !%*aa##??????????????????????????? | | ????????# = #???????????????????????????? | | ????????# ##??????????????????????????? | | ????????# % #??????????????????????????? | | ????????## ???????????????????? | | ?????????### #??????????????????? | | ???????????## ### #??????????????????? | | ????????????## ??## ##??????????????????? | | ?????????????# ???### ####???????????????????? | | ?????????????# ???????#####??????????????????????? | | ?????????????# ??????????????????????????????????? | | ?????????????#???????????????????????????????????? | | ?????????????????????????????????????????????????? | | ?????????????????????????????????????????????????? | | ?????????????????????????????????????????????????? | +----------------------------------------------------+ Best States ------------- Heat Dissipation 25 Energy Generation 10 Energy Capacity 125 Matter Stores 288 Matter Capacity 300 Sight Range 16 Terrain Scan Density 10 Evasion (%) 50 Item Schematics ----------------- None Robot Schematics ------------------ None Fabricated ------------ Nothing Alien Tech Used ----------------- None Achievements -------------- None Challenges ------------ None Game ------ Seed AntigravModifiedAccelerator Manual? 0 Play Time 00:05:12 Cumulative 66.6 hours Start 2021.03.15 @ 16:04:45 End 2021.03.15 @ 16:10:34 Sessions 1 Manual Loads 0 Difficulty Rogue Special Mode None Game No. 176 Rogue 25 Adventurer 148 Explorer 3 Win Type - Total 0 Types 0/0/0/0/0/0/0/0/0 Lore% 49 Gallery% 58 Achievement% 46 Wizard Run 0 Options --------- ASCII 0 Keyboard 0 Movement Numpad Keybinds 0 Fullscreen 1 Font 14/Smallcaps Map View 84x54 Tactical HUD 1 Map Filters NONE Filters NONE Steam 1 RUN: 03d70853-5fb4-4786-afdd-5384fa320814